fUSD/lending_fUSD_20240421
["ID","MTS","AMOUNT","RATE_DAILY","PERIOD"]
[323129965,1713700243686,-500.0,0.00016438,2]
[323129966,1713700243695,-500.0,0.00016438,2]
[323129967,1713700243705,-500.0,0.00016438,2]
[323129968,1713700243714,-506.23963406,0.00016438,2]
[323129969,1713700243725,-500.0,0.00016438,2]
[323129970,1713700243733,-500.0,0.00016438,2]
[323129971,1713700243742,-500.0,0.00016438,2]
[323129972,1713700243751,-507.8,0.00016438,2]
[323129974,1713700243760,-500.0,0.00016438,2]
[323129975,1713700243769,-500.0,0.00016438,2]
[323129977,1713700243779,-500.0,0.00016438,2]
[323129979,1713700243788,-500.0,0.00016438,2]
[323129980,1713700243797,-549.06512777,0.00016438,2]
[323129981,1713700243806,-500.0,0.00016438,2]
[323129982,1713700243815,-987.24,0.00016438,2]
[323129983,1713700243825,-500.0,0.00016438,2]
[323129984,1713700243834,-500.0,0.00016438,2]
[323129985,1713700243843,-500.0,0.00016438,2]
[323129986,1713700243853,-500.0,0.00016438,2]
[323129987,1713700243862,-500.0,0.00016438,2]
[323129988,1713700243871,-500.0,0.00016438,2]
[323129989,1713700243880,-500.0,0.00016438,2]
[323129990,1713700243890,-500.0,0.00016438,2]
[323129991,1713700243900,-828.48,0.00016438,2]
[323129992,1713700243910,-500.0,0.00016438,2]
[323129993,1713700243921,-154.16026957,0.00016438,2]
[323129994,1713700243947,-280.62050714,0.00016438,2]
[323129995,1713700243959,-65.21922329,0.00016438,2]
[323129996,1713700243968,-408.60540076,0.00016438,2]
[323129997,1713700244099,-91.39459924,0.00016438,2]
[323129998,1713700244110,-500.0,0.00016438,2]
[323129999,1713700244119,-500.0,0.00016438,2]
[323130000,1713700244128,-500.0,0.00016438,2]
[323130001,1713700244140,-500.0,0.00016438,2]
[323130002,1713700244149,-420.73540076,0.00016438,2]
[323130010,1713700246241,-164.47454881,0.00015995,2]
[323130011,1713700246251,-79.26459924,0.00016438,2]
[323130012,1713700246260,-500.0,0.00016438,2]
[323130013,1713700246270,-400.0,0.00016438,2]
[323130014,1713700246280,-500.0,0.00016438,2]
[323130015,1713700246291,-500.0,0.00016438,2]
[323130016,1713700246300,-500.0,0.00016438,2]
[323130017,1713700246309,-155.54674004,0.00016438,2]
[323130018,1713700246319,-500.0,0.00016438,2]
[323130019,1713700246328,-383.00253701,0.00016438,2]
[323130020,1713700246508,-585.81803847,0.00015985,2]
[323130021,1713700246519,-552.55561633,0.00015985,2]
[323130022,1713700246529,-116.99746299,0.00016438,2]
[323130023,1713700246539,-506.99400934,0.00016438,2]
[323130024,1713700246548,-500.0,0.00016438,2]
[323130025,1713700246557,-287.82939639,0.00016438,2]
[323130026,1713700246578,-215.36955476,0.00016438,2]
[323130027,1713700246587,-500.0,0.00016438,2]
[323130028,1713700246596,-500.0,0.00016438,2]
[323130029,1713700246605,-516.44220964,0.00016438,2]
[323130030,1713700246614,-520.31,0.00016438,2]
[323130031,1713700246624,-500.0,0.00016438,2]
[323130032,1713700246633,-521.84,0.00016438,2]
[323130033,1713700246642,-539.63,0.00016438,2]
[323130034,1713700246651,-506.29235044,0.00016438,2]
[323130035,1713700246661,-500.0,0.00016438,2]
[323130036,1713700246670,-500.0,0.00016438,2]
[323130038,1713700246679,-249.22,0.00016438,2]
[323130040,1713700246689,-500.0,0.00016438,2]
[323130042,1713700246698,-509.15,0.00016438,2]
[323130044,1713700246707,-500.0,0.00016438,2]
[323130045,1713700246717,-500.0,0.00016438,2]
[323130046,1713700246726,-500.0,0.00016438,2]
[323130047,1713700246736,-500.0,0.00016438,2]
[323130048,1713700246745,-500.0,0.00016438,2]
[323130049,1713700246755,-500.0,0.00016438,2]
[323130050,1713700246764,-500.0,0.00016438,2]
[323130051,1713700246774,-212.07,0.00016438,2]
[323130052,1713700246783,-500.0,0.00016438,2]
[323130053,1713700246793,-500.0,0.00016438,2]
[323130054,1713700246802,-500.0,0.00016438,2]
[323130055,1713700246812,-500.0,0.00016438,2]
[323130056,1713700246821,-500.0,0.00016438,2]
[323130057,1713700246831,-431.56,0.00016438,2]
[323130058,1713700246840,-303.53263843,0.00016438,2]
[323130059,1713700246849,-576.77,0.00016438,2]
[323130060,1713700246859,-500.0,0.00016438,2]
[323130061,1713700246868,-500.0,0.00016438,2]
[323130062,1713700246877,-500.0,0.00016438,2]
[323130063,1713700246887,-500.0,0.00016438,2]
[323130064,1713700246897,-500.0,0.00016438,2]
[323130065,1713700246906,-564.5,0.00016438,2]
[323130066,1713700246915,-500.0,0.00016438,2]
[323130067,1713700246927,-333.29,0.00016438,2]
[323130068,1713700246942,-500.0,0.00016438,2]
[323130069,1713700246952,-500.0,0.00016438,2]
[323130070,1713700246962,-933.78,0.00016438,2]
[323130071,1713700246972,-750.27,0.00016438,2]
[323130072,1713700246983,-667.27,0.00016438,2]
[323130073,1713700246993,-956.39,0.00016438,2]
[323130074,1713700247003,-847.6,0.00016438,2]
[323130075,1713700247013,-1093.31,0.00016438,2]
[323130076,1713700247022,-500.0,0.00016438,2]
[323130077,1713700247032,-500.0,0.00016438,2]
[323130078,1713700247041,-500.0,0.00016438,2]
[323130079,1713700247051,-1337.26,0.00016438,2]
[323130080,1713700247061,-1365.52,0.00016438,2]
[323130081,1713700247071,-217.24,0.00016438,2]
[323130082,1713700247080,-671.04,0.00016438,2]
[323130083,1713700247090,-500.0,0.00016438,2]
[323130084,1713700247100,-544.56,0.00016438,2]
[323130085,1713700247109,-872.94,0.00016438,2]
[323130086,1713700247118,-458.58144677,0.00016438,2]
[323130087,1713700247134,-41.41855323,0.00016438,2]
[323130088,1713700247143,-500.0,0.00016438,2]
[323130089,1713700247153,-571.04,0.00016438,2]
[323130090,1713700247162,-500.0,0.00016438,2]
[323130091,1713700247172,-933.24,0.00016438,2]
[323130092,1713700247182,-500.0,0.00016438,2]
[323130093,1713700247191,-500.0,0.00016438,2]
[323130094,1713700247202,-500.0,0.00016438,2]
[323130095,1713700247211,-1016.49,0.00016438,2]
[323130096,1713700247221,-315.64,0.00016438,2]
[323130097,1713700247239,-500.0,0.00016438,2]
[323130098,1713700247249,-500.0,0.00016438,2]
[323130099,1713700247259,-500.0,0.00016438,2]
[323130100,1713700247269,-500.0,0.00016438,2]
[323130101,1713700247278,-500.0,0.00016438,2]
[323130102,1713700247287,-376.41921509,0.00016438,2]
[323130103,1713700247298,-500.0,0.00016438,2]
[323130104,1713700247308,-500.0,0.00016438,2]
[323130105,1713700247320,-500.0,0.00016438,2]
[323130106,1713700247330,-601.65,0.00016438,2]
[323130107,1713700247339,-500.0,0.00016438,2]
[323130108,1713700247349,-500.0,0.00016438,2]
[323130109,1713700247359,-500.0,0.00016438,2]
[323130110,1713700247368,-1025.71,0.00016438,2]
[323130111,1713700247378,-343.42,0.00016438,2]
[323130112,1713700247388,-1107.2,0.00016438,2]
[323130113,1713700247397,-500.0,0.00016438,2]
[323130114,1713700247407,-500.0,0.00016438,2]
[323130115,1713700247416,-500.0,0.00016438,2]
[323130116,1713700247426,-500.0,0.00016438,2]
[323130117,1713700247436,-1043.46,0.00016438,2]
[323130118,1713700247446,-500.0,0.00016438,2]
[323130119,1713700247455,-500.0,0.00016438,2]
[323130120,1713700247465,-500.0,0.00016438,2]
[323130121,1713700247477,-926.66,0.00016438,2]
[323130122,1713700247486,-500.0,0.00016438,2]
[323130123,1713700247497,-603.06,0.00016438,2]
[323130124,1713700247507,-500.0,0.00016438,2]
[323130125,1713700247517,-500.0,0.00016438,2]
[323130126,1713700247526,-840.6,0.00016438,2]
[323130127,1713700247535,-500.0,0.00016438,2]
[323130128,1713700247545,-549.98320001,0.00016438,2]
[323130129,1713700247554,-559.45904848,0.00016438,2]
[323130130,1713700247564,-558.85,0.00016438,2]
[323130131,1713700247574,-533.05,0.00016438,2]
[323130132,1713700247583,-500.0,0.00016438,2]
[323130133,1713700247593,-507.56,0.00016438,2]
[323130134,1713700247602,-1100.56,0.00016438,2]
[323130135,1713700247785,-1237.56,0.00016438,2]
[323130136,1713700247798,-197.801604,0.00016438,2]
[323130137,1713700247807,-1181.01,0.00016438,2]
[323130138,1713700247817,-977.57,0.00016438,2]
[323130139,1713700247826,-501.6218288,0.00016438,2]
[323130140,1713700247837,-500.0,0.00016438,2]
[323130141,1713700247846,-894.56,0.00016438,2]
[323130142,1713700247856,-500.0,0.00016438,2]
[323130143,1713700247866,-535.59460736,0.00016438,2]
[323130144,1713700247875,-500.0,0.00016438,2]
[323130145,1713700247885,-556.52417933,0.00016438,2]
[323130146,1713700247894,-637.45,0.00016438,2]
[323130147,1713700247904,-500.0,0.00016438,2]
[323130148,1713700247914,-500.0,0.00016438,2]
[323130149,1713700247923,-1191.3,0.00016438,2]
[323130150,1713700247936,-715.07,0.00016438,2]
[323130151,1713700247946,-500.0,0.00016438,2]
[323130152,1713700247956,-694.21,0.00016438,2]
[323130153,1713700247965,-500.0,0.00016438,2]
[323130154,1713700247977,-1286.18,0.00016438,2]
[323130155,1713700247986,-839.31,0.00016438,2]
[323130156,1713700247995,-400.58463,0.00016438,2]
[323130157,1713700248005,-595.16,0.00016438,2]
[323130158,1713700248015,-557.86,0.00016438,2]
[323130159,1713700248024,-500.0,0.00016438,2]
[323130160,1713700248034,-1039.74,0.00016438,2]
[323130161,1713700248044,-457.61,0.00016438,2]
[323130162,1713700248053,-931.49,0.00016438,2]
[323130163,1713700248063,-500.0,0.00016438,2]
[323130164,1713700248072,-500.0,0.00016438,2]
[323130165,1713700248081,-1462.41,0.00016438,2]
[323130166,1713700248092,-591.99,0.00016438,2]
[323130167,1713700248101,-500.0,0.00016438,2]
[323130168,1713700248111,-510.47311805,0.00016438,2]
[323130169,1713700248120,-500.0,0.00016438,2]
[323130170,1713700248129,-564.5,0.00016438,2]
[323130171,1713700248139,-648.67347427,0.00016438,2]
[323130172,1713700248149,-500.0,0.00016438,2]
[323130173,1713700248158,-510.24,0.00016438,2]
[323130174,1713700248168,-1249.11,0.00016438,2]
[323130175,1713700248178,-500.0,0.00016438,2]
[323130176,1713700248187,-500.0,0.00016438,2]
[323130177,1713700248197,-550.04685249,0.00016438,2]
[323130178,1713700248207,-329.52492774,0.00016438,2]
[323130179,1713700248217,-656.04,0.00016438,2]
[323130180,1713700248229,-524.02,0.00016438,2]
[323130181,1713700248239,-500.0,0.00016438,2]
[323130182,1713700248248,-530.35698914,0.00016438,2]
[323130183,1713700248257,-1491.05,0.00016438,2]
[323130184,1713700248267,-857.04,0.00016438,2]
[323130185,1713700248277,-503.12414627,0.00016438,2]
[323130186,1713700248287,-500.0,0.00016438,2]
[323130187,1713700248297,-500.0,0.00016438,2]
[323130188,1713700248306,-827.33,0.00016438,2]
[323130189,1713700248316,-500.0,0.00016438,2]
[323130190,1713700248325,-1136.93,0.00016438,2]
[323130191,1713700248335,-646.81481525,0.00016438,2]
[323130192,1713700248344,-1217.48,0.00016438,2]
[323130193,1713700248353,-500.0,0.00016438,2]
[323130194,1713700248363,-951.44,0.00016438,2]
[323130195,1713700248372,-534.26,0.00016438,2]
[323130196,1713700248382,-500.0,0.00016438,2]
[323130197,1713700248391,-500.0,0.00016438,2]
[323130198,1713700248400,-500.0,0.00016438,2]
[323130199,1713700248410,-500.0,0.00016438,2]
[323130200,1713700248420,-646.24,0.00016438,2]
[323130201,1713700248429,-500.0,0.00016438,2]
[323130202,1713700248439,-500.0,0.00016438,2]
[323130203,1713700248448,-500.0,0.00016438,2]
[323130204,1713700248458,-500.0,0.00016438,2]
[323130205,1713700248468,-500.0,0.00016438,2]
[323130206,1713700248480,-1399.96,0.00016438,2]
[323130207,1713700248490,-748.15,0.00016438,2]
[323130208,1713700248500,-500.0,0.00016438,2]
[323130209,1713700248509,-500.0,0.00016438,2]
[323130210,1713700248519,-500.0,0.00016438,2]
[323130211,1713700248528,-500.0,0.00016438,2]
[323130212,1713700248538,-500.0,0.00016438,2]
[323130213,1713700248547,-845.46,0.00016438,2]
[323130214,1713700248557,-500.0,0.00016438,2]
[323130215,1713700248566,-500.0,0.00016438,2]
[323130216,1713700248576,-500.0,0.00016438,2]
[323130217,1713700248586,-500.0,0.00016438,2]
[323130218,1713700248595,-554.34148895,0.00016438,2]
[323130219,1713700248605,-500.0,0.00016438,2]
[323130220,1713700248614,-500.0,0.00016438,2]
[323130221,1713700248623,-500.0,0.00016438,2]
[323130222,1713700248632,-873.81,0.00016438,2]
[323130223,1713700248641,-500.0,0.00016438,2]
[323130224,1713700248650,-250.04,0.00016438,2]
[323130225,1713700248659,-500.0,0.00016438,2]
[323130226,1713700248669,-491.44867446,0.00016438,2]
[323130227,1713700248678,-500.0,0.00016438,2]
[323130228,1713700248686,-500.0,0.00016438,2]
[323130229,1713700248695,-500.0,0.00016438,2]
[323130230,1713700248705,-500.0,0.00016438,2]
[323130231,1713700248713,-500.0,0.00016438,2]
[323130232,1713700248725,-150.0,0.00016438,2]
[323130233,1713700248734,-500.0,0.00016438,2]
[323130234,1713700248743,-1266.53,0.00016438,2]
[323130235,1713700248753,-500.0,0.00016438,2]
[323130236,1713700248762,-500.0,0.00016438,2]
[323130237,1713700248771,-500.0,0.00016438,2]
[323130238,1713700248781,-415.79,0.00016438,2]
[323130239,1713700248790,-507.55740233,0.00016438,2]
[323130240,1713700248799,-1191.31,0.00016438,2]
[323130241,1713700248808,-504.92804998,0.00016438,2]
[323130242,1713700248817,-500.0,0.00016438,2]
[323130243,1713700248826,-500.0,0.00016438,2]
[323130244,1713700248835,-446.37,0.00016438,2]
[323130245,1713700248845,-500.0,0.00016438,2]
[323130246,1713700248854,-500.0,0.00016438,2]
[323130247,1713700248863,-500.0,0.00016438,2]
[323130248,1713700248873,-500.0,0.00016438,2]
[323130249,1713700248882,-500.0,0.00016438,2]
[323130250,1713700248891,-500.0,0.00016438,2]
[323130251,1713700248902,-500.0,0.00016438,2]
[323130252,1713700248911,-500.0,0.00016438,2]
[323130253,1713700248921,-728.12,0.00016438,2]
[323130254,1713700248933,-500.0,0.00016438,2]
[323130255,1713700248942,-500.0,0.00016438,2]
[323130256,1713700248952,-500.0,0.00016438,2]
[323130257,1713700248963,-500.0,0.00016438,2]
[323130258,1713700248972,-517.1301466,0.00016438,2]
[323130259,1713700248982,-500.0,0.00016438,2]
[323130260,1713700248992,-1279.4,0.00016438,2]
[323130261,1713700249003,-500.0,0.00016438,2]
[323130262,1713700249015,-500.0,0.00016438,2]
[323130263,1713700249024,-875.72,0.00016438,2]
[323130264,1713700249034,-877.22,0.00016438,2]
[323130265,1713700249043,-565.21,0.00016438,2]
[323130266,1713700249053,-500.0,0.00016438,2]
[323130267,1713700249063,-500.0,0.00016438,2]
[323130268,1713700249074,-500.0,0.00016438,2]
[323130269,1713700249084,-530.36929494,0.00016438,2]
[323130270,1713700249093,-500.0,0.00016438,2]
[323130271,1713700249103,-500.0,0.00016438,2]
[323130272,1713700249113,-500.0,0.00016438,2]
[323130273,1713700249122,-500.0,0.00016438,2]
[323130274,1713700249132,-500.0,0.00016438,2]
[323130275,1713700249142,-500.0,0.00016438,2]
[323130276,1713700249151,-500.0,0.00016438,2]
[323130277,1713700249160,-500.0,0.00016438,2]
[323130278,1713700249169,-500.0,0.00016438,2]
[323130279,1713700249179,-692.99,0.00016438,2]
[323130280,1713700249189,-500.0,0.00016438,2]
[323130281,1713700249198,-1108.58,0.00016438,2]
[323130282,1713700249207,-500.0,0.00016438,2]
[323130283,1713700249216,-1148.62,0.00016438,2]
[323130284,1713700249226,-965.13,0.00016438,2]
[323130285,1713700249235,-185.17512462,0.00016438,2]
[323130286,1713700249564,-314.82487538,0.00016438,2]
[323130287,1713700249574,-500.0,0.00016438,2]
[323130288,1713700249585,-500.0,0.00016438,2]
[323130289,1713700249595,-790.18,0.00016438,2]
[323130290,1713700249606,-642.73,0.00016438,2]
[323130291,1713700249617,-500.0,0.00016438,2]
[323130292,1713700249627,-500.0,0.00016438,2]
[323130293,1713700249637,-500.0,0.00016438,2]
[323130294,1713700249646,-500.0,0.00016438,2]
[323130295,1713700249657,-500.0,0.00016438,2]
[323130296,1713700249668,-500.0,0.00016438,2]
[323130297,1713700249678,-500.0,0.00016438,2]
[323130298,1713700249688,-500.0,0.00016438,2]
[323130299,1713700249699,-1240.32,0.00016438,2]
[323130300,1713700249709,-500.0,0.00016438,2]
[323130301,1713700249719,-500.0,0.00016438,2]
[323130302,1713700249730,-500.23,0.00016438,2]
[323130303,1713700249741,-888.02,0.00016438,2]
[323130304,1713700249750,-513.81983935,0.00016438,2]
[323130305,1713700249761,-500.0,0.00016438,2]
[323130306,1713700249771,-500.52900031,0.00016438,2]
[323130307,1713700249781,-500.0,0.00016438,2]
[323130308,1713700249790,-500.0,0.00016438,2]
[323130309,1713700249799,-667.78,0.00016438,2]
[323130310,1713700249809,-500.0,0.00016438,2]
[323130311,1713700249819,-506.30693948,0.00016438,2]
[323130312,1713700249828,-758.19,0.00016438,2]
[323130313,1713700249838,-569.38515528,0.00016438,2]
[323130314,1713700249847,-1355.94,0.00016438,2]
[323130315,1713700249857,-500.0,0.00016438,2]
[323130316,1713700249866,-545.57,0.00016438,2]
[323130317,1713700249876,-635.7313671,0.00016438,2]
[323130318,1713700249886,-500.0,0.00016438,2]
[323130319,1713700249895,-500.19440426,0.00016438,2]
[323130320,1713700249904,-761.04,0.00016438,2]
[323130321,1713700249914,-500.0,0.00016438,2]
[323130322,1713700249923,-410.00120483,0.00016438,2]
[323130323,1713700249937,-1684.96,0.00016438,2]
[323130324,1713700249947,-500.0,0.00016438,2]
[323130325,1713700249956,-1267.04,0.00016438,2]
[323130326,1713700249966,-500.0,0.00016438,2]
[323130327,1713700249977,-500.0,0.00016438,2]
[323130328,1713700249986,-1188.74,0.00016438,2]
[323130329,1713700249996,-500.0,0.00016438,2]
[323130330,1713700250005,-522.11,0.00016438,2]
[323130331,1713700250015,-276.15,0.00016438,2]
[323130332,1713700250025,-500.0,0.00016438,2]
[323130333,1713700250035,-500.0,0.00016438,2]
[323130334,1713700250045,-666.49,0.00016438,2]
[323130335,1713700250054,-500.0,0.00016438,2]
[323130336,1713700250064,-500.0,0.00016438,2]
[323130337,1713700250073,-1448.24,0.00016438,2]
[323130338,1713700250083,-936.35,0.00016438,2]
[323130339,1713700250092,-500.0,0.00016438,2]
[323130340,1713700250102,-500.0,0.00016438,2]
[323130341,1713700250112,-259.37872882,0.00016438,2]
[323130342,1713700250121,-500.0,0.00016438,2]
[323130343,1713700250131,-500.0,0.00016438,2]
[323130344,1713700250140,-371.95,0.00016438,2]
[323130345,1713700250150,-436.09,0.00016438,2]
[323130346,1713700250159,-500.0,0.00016438,2]
[323130347,1713700250169,-735.55,0.00016438,2]
[323130348,1713700250178,-1986.66,0.00016438,2]
[323130349,1713700250187,-500.0,0.00016438,2]
[323130350,1713700250196,-555.45,0.00016438,2]
[323130351,1713700250206,-932.52,0.00016438,2]
[323130352,1713700250215,-518.46,0.00016438,2]
[323130353,1713700250225,-500.0,0.00016438,2]
[323130354,1713700250234,-500.0,0.00016438,2]
[323130355,1713700250243,-528.47,0.00016438,2]
[323130356,1713700250253,-500.0,0.00016438,2]
[323130357,1713700250262,-182.93,0.00016438,2]
[323130358,1713700250271,-758.31,0.00016438,2]
[323130359,1713700250280,-215.39,0.00016438,2]
[323130360,1713700250289,-500.0,0.00016438,2]
[323130361,1713700250299,-500.0,0.00016438,2]
[323130362,1713700250308,-500.0,0.00016438,2]
[323130363,1713700250318,-1173.88,0.00016438,2]
[323130364,1713700250327,-504.08048016,0.00016438,2]
[323130365,1713700250336,-508.54540261,0.00016438,2]
[323130366,1713700250345,-580.81,0.00016438,2]
[323130367,1713700250354,-263.7129056,0.00016438,2]
[323130368,1713700250363,-500.0,0.00016438,2]
[323130369,1713700250372,-336.45,0.00016438,2]
[323130370,1713700250381,-500.0,0.00016438,2]
[323130371,1713700250390,-577.70999594,0.00016438,2]
[323130372,1713700250400,-500.0,0.00016438,2]
[323130373,1713700250409,-500.0,0.00016438,2]
[323130374,1713700250418,-500.0,0.00016438,2]
[323130375,1713700250427,-500.0,0.00016438,2]
[323130376,1713700250436,-678.72,0.00016438,2]
[323130377,1713700250445,-500.0,0.00016438,2]
[323130378,1713700250455,-500.0,0.00016438,2]
[323130379,1713700250464,-500.0,0.00016438,2]
[323130380,1713700250473,-500.0,0.00016438,2]
[323130381,1713700250485,-500.0,0.00016438,2]
[323130382,1713700250494,-500.0,0.00016438,2]
[323130383,1713700250504,-500.0,0.00016438,2]
[323130384,1713700250513,-1612.54,0.00016438,2]
[323130385,1713700250522,-500.0,0.00016438,2]
[323130386,1713700250532,-500.0,0.00016438,2]
[323130387,1713700250541,-500.0,0.00016438,2]
[323130388,1713700250550,-924.01,0.00016438,2]
[323130389,1713700250559,-500.0,0.00016438,2]
[323130390,1713700250568,-505.22941484,0.00016438,2]
[323130391,1713700250577,-500.0,0.00016438,2]
[323130392,1713700250586,-698.18,0.00016438,2]
[323130393,1713700250595,-505.71,0.00016438,2]
[323130394,1713700250604,-500.0,0.00016438,2]
[323130395,1713700250613,-717.04,0.00016438,2]
[323130396,1713700250623,-500.0,0.00016438,2]
[323130397,1713700250632,-1623.12,0.00016438,2]
[323130398,1713700250641,-500.0,0.00016438,2]
[323130399,1713700250650,-500.0,0.00016438,2]
[323130400,1713700250660,-500.0,0.00016438,2]
[323130401,1713700250669,-500.0,0.00016438,2]
[323130402,1713700250679,-500.0,0.00016438,2]
[323130403,1713700250688,-1378.33,0.00016438,2]
[323130404,1713700250697,-701.58,0.00016438,2]
[323130405,1713700250707,-500.0,0.00016438,2]
[323130406,1713700250716,-500.0,0.00016438,2]
[323130407,1713700250726,-500.0,0.00016438,2]
[323130408,1713700250735,-508.25,0.00016438,2]
[323130409,1713700250744,-622.24,0.00016438,2]
[323130410,1713700250754,-1184.83,0.00016438,2]
[323130411,1713700250763,-500.0,0.00016438,2]
[323130412,1713700250772,-1071.3,0.00016438,2]
[323130413,1713700250781,-481.07698547,0.00016438,2]
[323130414,1713700250791,-523.38756768,0.00016438,2]
[323130415,1713700250999,-438.35492208,0.00016438,2]
[323130424,1713700950709,-155.0,0.00013115,2]
[323130425,1713700950732,-2321.35455575,0.00013116,2]
[323130426,1713700950755,-464.5,0.00013117,2]
[323130431,1713701049137,302.59380673,0.00013117,2]
[323130432,1713701070955,399.17869127,0.00013117,2]
[323130433,1713701082957,399.17869127,0.00013117,2]
[323130434,1713701104947,399.17869127,0.00013117,2]
[323130435,1713701126973,399.17869127,0.00013117,2]
[323130437,1713701145091,399.17869127,0.00013117,2]
[323130438,1713701163039,79.55818117,0.00013117,2]
[323130439,1713701358166,-548.73677398,0.00012758,2]
[323130451,1713701432382,-1099.33301702,0.00012757,2]
[323130453,1713701432492,-1222.02153873,0.00012757,2]
[323130454,1713701432502,-1049.18353987,0.00012758,2]
[323130455,1713701432515,-441.27,0.0001276,2]
[323130456,1713701432552,-145.97803847,0.00013117,2]
[323130457,1713701432562,-250.0,0.00014304,2]
[323130458,1713701432571,-1370.71,0.00014353,2]
[323130459,1713701432581,-160.96564049,0.00014536,2]
[323130460,1713701432590,-392.47,0.0001459,2]
[323130461,1713701432600,-665.38,0.00014611,2]
[323130462,1713701432610,-200.0,0.00014637,2]
[323130463,1713701432619,-150.0,0.00014657,2]
[323130464,1713701432630,-13621.30003996,0.00014658,2]
[323130465,1713701432657,-266.9148653,0.00014658,2]
[323130466,1713701432670,-652.50185,0.00014658,2]
[323130467,1713701432696,-1677.69324474,0.00014658,2]
[323130468,1713701432705,-151.06,0.00014684,2]
[323130469,1713701432714,-240.12,0.00014823,2]
[323130470,1713701432724,-500.0,0.00014913,2]
[323130471,1713701432733,-719.21,0.00014935,2]
[323130472,1713701432743,-1250.5368,0.00014976,2]
[323130473,1713701432753,-750.0,0.00015,2]
[323130474,1713701432762,-382.15017822,0.00015,2]
[323130475,1713701432772,-728.99707968,0.00015,2]
[323130477,1713701432784,-334.50747262,0.00015,2]
[323130480,1713701432801,-653.98256,0.00015,2]
[323130482,1713701432811,-1350.65640957,0.00015,2]
[323130484,1713701432820,-323.80854154,0.00015023,2]
[323130486,1713701432831,-441.27,0.00015024,2]
[323130488,1713701432841,-44454.78278356,0.00015076,2]
[323130490,1713701432854,-7584.462146,0.00015076,2]
[323130588,1713701438637,-41543.6616075,0.00015076,2]
[323130589,1713701438646,-195.01,0.00015077,2]
[323130590,1713701438656,-3038.8830653,0.00015495,4]
[323130591,1713701438665,-150.0,0.000155,2]
[323130592,1713701438674,-12912.1403,0.000155,2]
[323130593,1713701438683,-500.0,0.000155,2]
[323130594,1713701438693,-40024.2792,0.000155,2]
[323130595,1713701438703,-450.0,0.00015593,2]
[323130596,1713701438712,-283.05098436,0.00015598,2]
[323130597,1713701438721,-155.13993238,0.00015598,2]
[323130598,1713701438731,-375.27002545,0.00015598,2]
[323130599,1713701438739,-634.27069607,0.00015599,2]
[323130600,1713701438749,-30702.40733751,0.000156,5]
[323130601,1713701438761,-153219.10232293,0.000156,5]
[323130602,1713701438771,-208.38643121,0.00015614,2]
[323130603,1713701438780,-253.13001085,0.00015614,2]
[323130605,1713701438789,-2705.0,0.00015635,2]
[323130607,1713701438798,-1055.0,0.00015635,2]
[323130609,1713701438808,-450.0,0.00015793,2]
[323130611,1713701438817,-800.0,0.000158,2]
[323130613,1713701438826,-203.79893697,0.00015993,2]